fUSD/lending_fUSD_20260228
["ID","MTS","AMOUNT","RATE_DAILY","PERIOD"]
[406863373,1772248246349,-1295.0,0.00017096,2]
[406863375,1772248246358,-5507.95366483,0.000171,2]
[406863377,1772248246367,-790.16,0.00017121,2]
[406863379,1772248246376,-166.66,0.00017122,2]
[406863381,1772248246386,-1295.0,0.0001715,2]
[406863383,1772248246394,-204.0,0.00017162,2]
[406863385,1772248246403,-1295.0,0.00017205,2]
[406863387,1772248246412,-1295.0,0.0001726,2]
[406863389,1772248246421,-204.0,0.00017285,2]
[406863391,1772248246432,-1295.0,0.00017315,2]
[406863393,1772248246442,-204.0,0.00017327,2]
[406863396,1772248246451,-336.36194613,0.00017361,2]
[406863398,1772248246461,-1295.0,0.0001737,2]
[406863399,1772248246470,-204.0,0.00017393,2]
[406863401,1772248246479,-1125.44717571,0.000174,2]
[406863403,1772248246489,-204.0,0.000174,2]
[406863405,1772248246499,-1295.0,0.00017424,2]
[406863407,1772248246508,-3174.17877476,0.0001745,2]
[406863410,1772248246517,-166.66,0.00017475,2]
[406863412,1772248246527,-1295.0,0.00017479,2]
[406863414,1772248246537,-694.42441671,0.000175,3]
[406863416,1772248246546,-5616.53495309,0.000175,3]
[406863418,1772248246555,-1295.0,0.00017534,2]
[406863420,1772248246564,-3979.36214283,0.00017534,2]
[406863422,1772248246574,-1005.21822761,0.00017542,2]
[406863424,1772248246583,-1149.05995873,0.00017542,2]
[406863426,1772248246592,-1139.7133986,0.00017542,2]
[406863428,1772248246601,-1009.08081588,0.00017542,2]
[406863430,1772248246610,-1066.9634604,0.00017542,2]
[406863432,1772248246619,-1031.51845225,0.00017542,2]
[406863434,1772248246628,-1054.84631274,0.00017542,2]
[406863435,1772248246637,-1038.27703691,0.00017542,2]
[406863438,1772248246647,-1008.04305514,0.00017542,2]
[406863439,1772248246656,-1015.97862649,0.00017542,2]
[406863441,1772248246665,-1142.14784042,0.00017542,2]
[406863444,1772248246674,-1113.15294234,0.00017542,2]
[406863446,1772248246684,-1091.69283583,0.00017542,2]
[406863448,1772248246694,-1071.11435817,0.00017542,2]
[406863450,1772248246703,-1149.9842632,0.00017542,2]
[406863452,1772248246713,-1072.07234283,0.00017542,2]
[406863454,1772248246722,-1060.83429487,0.00017542,2]
[406863469,1772248246860,-1127.88836796,0.00017542,2]
[406863471,1772248246872,-1052.0568969,0.00017542,2]
[406863473,1772248246881,-1052.52130806,0.00017542,2]
[406863475,1772248246891,-1002.23675965,0.00017542,2]
[406863477,1772248246900,-1084.36635378,0.00017542,2]
[406863479,1772248246909,-1997.48459406,0.00017542,2]
[406863481,1772248246919,-204.0,0.00017547,2]
[406863483,1772248246929,-1295.0,0.00017589,2]
[406863485,1772248246939,-1295.0,0.00017643,2]
[406863487,1772248246948,-200.0,0.00017652,2]
[406863489,1772248246958,-1310.69339842,0.00017698,2]
[406863491,1772248246967,-500.0,0.00017727,2]
[406863493,1772248246976,-500.0,0.00017727,2]
[406863496,1772248246986,-5000.0,0.00017808,2]
[406863498,1772248246997,-500.0,0.00017808,2]
[406863500,1772248247006,-800.0,0.00017808,2]
[406863502,1772248247016,-204.0,0.00017818,2]
[406863504,1772248247029,-166.66,0.00017828,2]
[406863506,1772248247039,-504.26225979,0.00017863,2]
[406863508,1772248247048,-1075.2658489,0.0001789,2]
[406863510,1772248247058,-19420.49031765,0.000179,3]
[406863512,1772248247067,-1393.11160223,0.000179,2]
[406863514,1772248247077,-1056.69812695,0.000179,2]
[406863516,1772248247086,-3174.17877476,0.000179,2]
[406863518,1772248247096,-26058.97840009,0.000179,2]
[406863520,1772248247105,-1125.44717571,0.000179,2]
[406863522,1772248247114,-336.36194613,0.000179,3]
[406863524,1772248247123,-5628.20175665,0.000179,2]
[406863526,1772248247132,-195.98442162,0.00017955,2]
[406863528,1772248247141,-790.16,0.00017955,2]
[406863530,1772248247151,-790.16,0.00017955,2]
[406863532,1772248247160,-307.20133331,0.00017988,2]
[406863534,1772248247169,-1051.23258946,0.0001799,2]
[406863536,1772248247178,-1051.23258946,0.0001799,2]
[406863538,1772248247187,-300.0,0.00017999,2]
[406863540,1772248247197,-790.16,0.00017999,2]
[406863542,1772248247206,-790.16,0.00017999,2]
[406863544,1772248247215,-790.16,0.00017999,2]
[406863546,1772248247225,-790.16,0.00017999,2]
[406863548,1772248247235,-790.16,0.00017999,2]
[406863550,1772248247244,-790.16,0.00017999,2]
[406863552,1772248247258,-790.16,0.00017999,2]
[406863554,1772248247269,-790.16,0.00017999,2]
[406863556,1772248247279,-790.16,0.00017999,2]
[406863558,1772248247288,-790.21712351,0.00017999,2]
[406863559,1772248247299,-300.0,0.00017999,2]
[406863561,1772248247308,-292.6907697,0.00017999,2]
[406863563,1772248247317,-500.0,0.00017999,2]
[406863565,1772248247330,-500.0,0.00017999,2]
[406863568,1772248247339,-500.0,0.00017999,2]
[406863570,1772248247349,-500.0,0.00017999,2]
[406863572,1772248247358,-281.09297896,0.00017999,2]
[406863574,1772248247368,-500.0,0.00017999,2]
[406863575,1772248247377,-500.0,0.00017999,2]
[406863576,1772248247387,-500.0,0.00017999,2]
[406863577,1772248247395,-536.88822607,0.00017999,2]
[406863578,1772248247405,-4357924.70471217,0.00018,2]
[406863579,1772248247532,-151.0,0.00014634,2]
[406863580,1772248247542,-222.5644,0.00018,2]
[406863581,1772248247554,-2090.40897658,0.00018,2]
[406863582,1772248247568,-494.1314508,0.00018,2]
[406863583,1772248247580,-717.05206113,0.00018,2]
[406863584,1772248247591,-272.19181,0.00018,2]
[406863585,1772248247602,-857.81402166,0.00018,2]
[406863586,1772248247614,-684.4546711,0.00018,2]
[406863587,1772248247630,-395.472,0.00018,2]
[406863588,1772248247642,-931.70647987,0.00018,2]
[406863589,1772248247682,-773.02906692,0.00018,2]
[406863590,1772248247693,-9449.51153875,0.00018,2]
[406863591,1772248247729,-9502.0,0.00018,2]
[406863592,1772248247740,-4356.2149403,0.00018,2]
[406863593,1772248247751,-444.58999998,0.00018,2]
[406863594,1772248247765,-3143.55745,0.00018,2]
[406863595,1772248912307,645.0,0.0001711,120]
[406863596,1772249024258,164.74,7.071e-05,2]
[406863599,1772249310130,4297.0,9e-05,10]
[406863633,1772249431716,-164.74,8.25e-05,2]
[406863634,1772249431727,-250.0,8.416e-05,2]
[406863635,1772249431738,-250.0,8.556e-05,2]
[406863636,1772249431748,-1000.0,8.581e-05,2]
[406863637,1772249431757,-285.71558694,8.602e-05,2]
[406863638,1772249431769,-1482.9015306,8.602e-05,2]
[406863639,1772249431781,-80.93288246,8.602e-05,2]
[406863640,1772249431791,-500.0,8.673e-05,2]
[406863641,1772249431800,-434.22999634,8.673e-05,2]
[406863642,1772249431811,-65.77000366,8.673e-05,2]
[406863643,1772249431821,-500.0,8.708e-05,2]
[406863644,1772249431831,-250.0,9.075e-05,2]
[406863645,1772249431841,-57.43778303,9.075e-05,2]
[406863646,1772249431852,-137.56221697,9.075e-05,2]
[406863647,1772249431861,-300.0,9.183e-05,2]
[406863648,1772249431871,-749.26392623,9.183e-05,2]
[406863649,1772249431883,-450.73607377,9.183e-05,2]
[406863650,1772249431893,-215.0,9.183e-05,2]
[406863651,1772249431902,-212.73782286,9.183e-05,2]
[406863652,1772249431914,-87.26217714,9.183e-05,2]
[406863653,1772249431923,-150.0,9.184e-05,2]
[406863654,1772249431933,-13.69093402,9.185e-05,2]
[406863656,1772249431948,-266.38014877,9.185e-05,2]
[406863684,1772249432187,-666.96670514,9.185e-05,2]
[406863685,1772249432201,-361.04264806,9.185e-05,2]
[406863690,1772249437817,-1651.53765017,9.185e-05,2]
[406863691,1772249437829,-64735.32191384,9.185e-05,2]
[406863692,1772249437841,-164.0,9.19e-05,2]
[406863693,1772249437851,-1000.0,9.221e-05,2]
[406863694,1772249437861,-1000.0,9.221e-05,2]
[406863695,1772249437870,-163.84344355,9.375e-05,2]
[406863696,1772249437880,-159.12358456,9.375e-05,2]
[406863697,1772249437889,-155.96966553,9.375e-05,2]
[406863698,1772249437898,-150.0,9.375e-05,2]
[406863699,1772249437907,-155.56087142,9.375e-05,2]
[406863700,1772249437917,-150.0,9.375e-05,2]
[406863701,1772249437927,-152.88887975,9.375e-05,2]
[406863702,1772249437937,-150.0,9.375e-05,2]
[406863703,1772249437947,-12870.85,9.389e-05,2]
[406863704,1772249437956,-164.74,9.428e-05,2]
[406863705,1772249437966,-150.0,9.43e-05,2]
[406863706,1772249437976,-1722.1825,9.45e-05,2]
[406863707,1772249437986,-4133.7097,9.45e-05,2]
[406863708,1772249437995,-35000.8431,9.45e-05,2]
[406863709,1772249438005,-2500.0,9.45e-05,2]
[406863710,1772249438016,-150.0,9.485e-05,2]
[406863711,1772249438025,-2184.36,9.53e-05,2]
[406863712,1772249438035,-150.0,9.539e-05,2]
[406863713,1772249438049,-281.2607045,9.594e-05,2]
[406863714,1772249438061,-228.63,9.649e-05,2]
[406863715,1772249438070,-500.0,9.649e-05,2]
[406863716,1772249438080,-541.14079627,9.649e-05,2]
[406863717,1772249438090,-500.0,9.649e-05,2]
[406863719,1772249438099,-500.0,9.649e-05,2]
[406863721,1772249438108,-541.14079627,9.649e-05,2]
[406863723,1772249438118,-362.7163988,9.649e-05,2]
[406863725,1772249438127,-500.0,9.649e-05,2]
[406863727,1772249438136,-541.14079627,9.649e-05,2]
[406863729,1772249438146,-450.38667386,9.649e-05,2]
[406863731,1772249438155,-500.0,9.649e-05,2]
[406863733,1772249438164,-541.14079627,9.649e-05,2]
[406863735,1772249438173,-541.14079627,9.649e-05,2]
[406863737,1772249438182,-500.0,9.649e-05,2]
[406863739,1772249438191,-541.14079627,9.649e-05,2]
[406863741,1772249438201,-291.33501849,9.649e-05,2]
[406863743,1772249438210,-541.14079627,9.649e-05,2]
[406863749,1772249438231,-541.14079627,9.649e-05,2]
[406863752,1772249438244,-541.14079627,9.649e-05,2]
[406863755,1772249438254,-541.14079627,9.649e-05,2]
[406863758,1772249438263,-541.14079627,9.649e-05,2]
[406863761,1772249438273,-541.14079627,9.649e-05,2]
[406863764,1772249438284,-541.14079627,9.649e-05,2]
[406863767,1772249438295,-541.14079627,9.649e-05,2]
[406863769,1772249438304,-541.14079627,9.649e-05,2]
[406863770,1772249438314,-541.14079627,9.649e-05,2]
[406863773,1772249438324,-541.14079627,9.649e-05,2]
[406863775,1772249438334,-541.14079627,9.649e-05,2]
[406863777,1772249438344,-541.14079627,9.649e-05,2]
[406863779,1772249438353,-541.14079627,9.649e-05,2]
[406863781,1772249438364,-541.14079627,9.649e-05,2]
[406863783,1772249438374,-541.14079627,9.649e-05,2]
[406863785,1772249438383,-541.14079627,9.649e-05,2]
[406863787,1772249438393,-541.14079627,9.649e-05,2]
[406863789,1772249438402,-541.14079627,9.649e-05,2]
[406863791,1772249438412,-541.14079627,9.649e-05,2]
[406863793,1772249438422,-541.14079627,9.649e-05,2]
[406863795,1772249438432,-541.14079627,9.649e-05,2]
[406863797,1772249438441,-541.14079627,9.649e-05,2]
[406863799,1772249438451,-541.14079627,9.649e-05,2]
[406863801,1772249438461,-541.14079627,9.649e-05,2]
[406863803,1772249438471,-541.14079627,9.649e-05,2]
[406863805,1772249438481,-541.14079627,9.649e-05,2]
[406863807,1772249438493,-541.14079627,9.649e-05,2]
[406863809,1772249438502,-541.14079627,9.649e-05,2]
[406863812,1772249438512,-541.14079627,9.649e-05,2]
[406863814,1772249438521,-541.14079627,9.649e-05,2]
[406863816,1772249438531,-541.14079627,9.649e-05,2]
[406863818,1772249438540,-541.14079627,9.649e-05,2]
[406863820,1772249438550,-541.14079627,9.649e-05,2]
[406863821,1772249438560,-541.14079627,9.649e-05,2]
[406863823,1772249438569,-541.14079627,9.649e-05,2]
[406863826,1772249438584,-541.14079627,9.649e-05,2]
[406863828,1772249438593,-541.14079627,9.649e-05,2]
[406863830,1772249438603,-541.14079627,9.649e-05,2]
[406863832,1772249438614,-541.14079627,9.649e-05,2]
[406863834,1772249438624,-541.14079627,9.649e-05,2]
[406863836,1772249438637,-541.14079627,9.649e-05,2]
[406863838,1772249438647,-541.14079627,9.649e-05,2]
[406863840,1772249438657,-541.14079627,9.649e-05,2]
[406863843,1772249438667,-541.14079627,9.649e-05,2]
[406863845,1772249438678,-1168.38291959,9.649e-05,2]
[406863846,1772249438687,-1168.38291959,9.649e-05,2]
[406863849,1772249438697,-1168.38291959,9.649e-05,2]
[406863851,1772249438709,-1168.38291959,9.649e-05,2]
[406863853,1772249438718,-1168.38291959,9.649e-05,2]
[406863855,1772249438728,-1168.38291959,9.649e-05,2]
[406863857,1772249438737,-1168.38291959,9.649e-05,2]
[406863859,1772249438747,-1168.38291959,9.649e-05,2]
[406863861,1772249438756,-1168.38291959,9.649e-05,2]
[406863863,1772249438766,-1168.38291959,9.649e-05,2]
[406863865,1772249438775,-1168.38291959,9.649e-05,2]
[406863867,1772249438796,-1168.38291959,9.649e-05,2]
[406863869,1772249438805,-1168.38291959,9.649e-05,2]
[406863871,1772249438815,-1168.38291959,9.649e-05,2]
[406863873,1772249438824,-1168.38291959,9.649e-05,2]
[406863875,1772249438833,-1168.38291959,9.649e-05,2]
[406863877,1772249438843,-1168.38291959,9.649e-05,2]
[406863879,1772249438852,-1168.38291959,9.649e-05,2]
[406863881,1772249438863,-1168.38291959,9.649e-05,2]
[406863883,1772249438873,-1168.38291959,9.649e-05,2]
[406863885,1772249438882,-1168.38291959,9.649e-05,2]
[406863887,1772249438892,-1168.38291959,9.649e-05,2]
[406863889,1772249438902,-1168.38291959,9.649e-05,2]
[406863891,1772249438911,-1168.38291959,9.649e-05,2]
[406863893,1772249438920,-1168.38291959,9.649e-05,2]
[406863895,1772249438930,-1168.38291959,9.649e-05,2]
[406863897,1772249438940,-1168.38291959,9.649e-05,2]
[406863899,1772249438950,-1168.38291959,9.649e-05,2]
[406863902,1772249438964,-1168.38291959,9.649e-05,2]
[406863904,1772249438974,-1168.38291959,9.649e-05,2]
[406863906,1772249438983,-1168.38291959,9.649e-05,2]
[406863908,1772249438993,-1168.38291959,9.649e-05,2]
[406863910,1772249439002,-1168.38291961,9.649e-05,2]
[406863912,1772249439012,-1168.38291961,9.649e-05,2]
[406863914,1772249439022,-1168.38291961,9.649e-05,2]
[406863916,1772249439031,-1168.38291961,9.649e-05,2]
[406863918,1772249439041,-1000.0,9.654e-05,2]
[406863920,1772249439051,-3391.54778989,9.72e-05,2]
[406863922,1772249439061,-150.0,9.726e-05,2]
[406863924,1772249439070,-200.0,9.726e-05,2]
[406863926,1772249439079,-156.41275751,9.726e-05,2]
[406863929,1772249439090,-264.4246,9.749e-05,2]
[406863931,1772249439099,-1500.0,9.768e-05,2]
[406863933,1772249439109,-1500.0,9.768e-05,2]
[406863935,1772249439118,-2677.81,9.778e-05,2]
[406863937,1772249439129,-150.0,9.781e-05,2]
[406863939,1772249439138,-3600.0,9.8e-05,3]
[406863941,1772249439153,-1432.9404196,9.849e-05,3]
[406863943,1772249439163,-32888.5933,9.85e-05,2]
[406863945,1772249439173,-1000.0,9.85e-05,2]
[406863947,1772249439182,-7300.0,9.9e-05,3]
[406863950,1772249439192,-228.63,9.923e-05,2]
[406863952,1772249439202,-489.80636374,9.999e-05,2]
[406863954,1772249439211,-500.0,9.999e-05,2]
[406863956,1772249439221,-500.0,9.999e-05,2]
[406863958,1772249439232,-151.72421908,9.999e-05,2]
[406863960,1772249439242,-597.67166663,9.999e-05,2]
[406863962,1772249439251,-726.10987878,0.0001,2]
[406863964,1772249439261,-726.10987878,0.0001,2]
[406863966,1772249439271,-726.10987878,0.0001,2]
[406863968,1772249439281,-1468.05806809,0.0001,2]
[406863970,1772249439290,-500.0,0.0001,2]
[406863972,1772249439300,-500.0,0.0001,2]
[406863974,1772249439309,-500.0,0.0001,2]
[406863976,1772249439320,-500.0,0.0001,2]
[406863978,1772249439330,-500.0,0.0001,2]
[406863981,1772249439350,-500.0,0.0001,2]
[406863983,1772249439360,-500.0,0.0001,2]
[406863985,1772249439369,-500.0,0.0001,2]
[406863987,1772249439378,-500.0,0.0001,2]
[406863989,1772249439388,-500.0,0.0001,2]
[406863991,1772249439397,-500.0,0.0001,2]
[406863993,1772249439406,-500.0,0.0001,2]
[406863995,1772249439415,-500.0,0.0001,2]
[406863997,1772249439425,-500.0,0.0001,2]
[406863999,1772249439435,-500.0,0.0001,2]
[406864001,1772249439445,-500.0,0.0001,2]
[406864003,1772249439454,-500.0,0.0001,2]
[406864005,1772249439464,-500.0,0.0001,2]
[406864007,1772249439474,-500.0,0.0001,2]
[406864009,1772249439483,-500.0,0.0001,2]
[406864011,1772249439493,-500.0,0.0001,2]
[406864013,1772249439503,-500.0,0.0001,2]
[406864015,1772249439513,-500.0,0.0001,2]
[406864017,1772249439522,-500.0,0.0001,2]
[406864019,1772249439532,-151.0,0.0001,2]
[406864022,1772249439546,-151.0,0.0001,2]
[406864024,1772249439556,-151.0,0.0001,2]
[406864026,1772249439566,-151.0,0.0001,2]
[406864028,1772249439575,-151.0,0.0001,2]
[406864030,1772249439585,-151.0,0.0001,2]
[406864032,1772249439595,-151.0,0.0001,2]
[406864034,1772249439605,-151.0,0.0001,2]
[406864036,1772249439615,-151.0,0.0001,2]
[406864038,1772249439625,-151.0,0.0001,2]
[406864040,1772249439634,-151.0,0.0001,2]
[406864042,1772249439647,-151.0,0.0001,2]
[406864044,1772249439657,-151.0,0.0001,2]
[406864046,1772249439667,-11000.0,0.0001,3]
[406864049,1772249439678,-151.0,0.0001,2]
[406864051,1772249439688,-151.0,0.0001,2]
[406864053,1772249439698,-151.0,0.0001,2]
[406864055,1772249439709,-151.0,0.0001,2]
[406864057,1772249439719,-151.0,0.0001,2]
[406864059,1772249439729,-151.0,0.0001,2]
[406864061,1772249439741,-151.0,0.0001,2]
[406864063,1772249439751,-151.0,0.0001,2]
[406864065,1772249439761,-151.0,0.0001,2]
[406864067,1772249439770,-151.0,0.0001,2]
[406864069,1772249439780,-151.0,0.0001,2]
[406864071,1772249439790,-151.0,0.0001,2]
[406864073,1772249439800,-151.0,0.0001,2]
[406864075,1772249439809,-151.0,0.0001,2]
[406864076,1772249439819,-151.0,0.0001,2]
[406864077,1772249439828,-151.0,0.0001,2]
[406864078,1772249439838,-151.0,0.0001,2]
[406864079,1772249439848,-151.0,0.0001,2]
[406864080,1772249439859,-151.0,0.0001,2]
[406864081,1772249439869,-151.0,0.0001,2]
[406864082,1772249439879,-151.0,0.0001,2]
[406864083,1772249439889,-151.0,0.0001,2]
[406864084,1772249439899,-151.0,0.0001,2]
[406864085,1772249439909,-151.0,0.0001,2]
[406864086,1772249439919,-151.0,0.0001,2]
[406864087,1772249439929,-151.0,0.0001,2]
[406864089,1772249439938,-1107.18777432,0.0001,2]
[406864090,1772249439949,-1680.0,0.00010101,2]
[406864091,1772249439959,-420.0,0.00010101,2]
[406864092,1772249439969,-255.0,0.00010102,2]
[406864094,1772249439980,-228.65421015,0.00010197,2]
[406864095,1772249439989,-501.73395608,0.000103,2]
[406864096,1772249440000,-500.0,0.000103,2]
[406864097,1772249440009,-501.69063907,0.000103,2]
[406864098,1772249440019,-500.97875071,0.000103,2]
[406864099,1772249440029,-500.0,0.000103,2]
[406864100,1772249440038,-500.0,0.000103,2]
[406864101,1772249440048,-500.0,0.000103,2]
[406864102,1772249440058,-500.0,0.000103,2]
[406864103,1772249440068,-500.0,0.000103,2]
[406864104,1772249440077,-500.0,0.000103,2]
[406864105,1772249440087,-500.0,0.000103,2]
[406864106,1772249440096,-500.0,0.000103,2]
[406864107,1772249440105,-500.0,0.000103,2]
[406864108,1772249440116,-500.0,0.000103,2]
[406864109,1772249440126,-500.0,0.000103,2]
[406864110,1772249440136,-900.23919341,0.000103,2]
[406864111,1772249440145,-500.0,0.000103,2]
[406864112,1772249440155,-600.0,0.000103,2]
[406864113,1772249440164,-500.0,0.000103,2]
[406864114,1772249440173,-600.0,0.000103,2]
[406864115,1772249440182,-600.0,0.000103,2]
[406864116,1772249440191,-532.01062926,0.000103,2]
[406864117,1772249440201,-600.0,0.000103,2]
[406864118,1772249440210,-600.0,0.000103,2]
[406864119,1772249440220,-500.0,0.000103,2]
[406864120,1772249440230,-600.0,0.000103,2]
[406864121,1772249440239,-500.0,0.000103,2]
[406864122,1772249440248,-600.0,0.000103,2]
[406864123,1772249440257,-500.0,0.000103,2]
[406864124,1772249440267,-600.0,0.000103,2]
[406864125,1772249440276,-979.04045203,0.000103,2]
[406864126,1772249440285,-600.0,0.000103,2]
[406864127,1772249440295,-600.0,0.000103,2]
[406864128,1772249440305,-600.0,0.000103,2]
[406864129,1772249440314,-600.0,0.000103,2]
[406864130,1772249440324,-500.0,0.000103,2]
[406864131,1772249440333,-1199.67654763,0.000103,2]
[406864132,1772249440342,-923.38412055,0.000103,2]
[406864133,1772249440352,-500.0,0.000103,2]
[406864134,1772249440362,-900.0,0.000103,2]
[406864135,1772249440372,-506.8082533,0.000103,2]
[406864136,1772249440382,-500.0,0.000103,2]
[406864137,1772249440391,-900.0,0.000103,2]
[406864138,1772249440401,-500.0,0.000103,2]
[406864139,1772249440411,-900.0,0.000103,2]
[406864140,1772249440421,-500.0,0.000103,2]
[406864141,1772249440430,-900.0,0.000103,2]
[406864142,1772249440439,-500.0,0.000103,2]
[406864143,1772249440448,-500.0,0.000103,2]
[406864144,1772249440458,-900.0,0.000103,2]
[406864145,1772249440468,-500.0,0.000103,2]
[406864146,1772249440478,-500.0,0.000103,2]
[406864147,1772249440489,-900.0,0.000103,2]
[406864148,1772249440498,-500.0,0.000103,2]
[406864149,1772249440508,-710.68871512,0.000103,2]
[406864150,1772249440518,-900.0,0.000103,2]
[406864151,1772249440527,-900.0,0.000103,2]
[406864152,1772249440537,-500.0,0.000103,2]
[406864153,1772249440546,-900.0,0.000103,2]
[406864154,1772249440556,-500.0,0.000103,2]
[406864155,1772249440567,-900.0,0.000103,2]
[406864156,1772249440576,-500.60351731,0.000103,2]
[406864157,1772249440586,-900.0,0.000103,2]
[406864158,1772249440595,-900.0,0.000103,2]
[406864159,1772249440605,-900.0,0.000103,2]
[406864160,1772249440615,-1412.43302131,0.000103,2]
[406864161,1772249440624,-500.0,0.000103,2]
[406864162,1772249440635,-500.0,0.000103,2]
[406864163,1772249440647,-500.0,0.000103,2]
[406864164,1772249440656,-500.0,0.000103,2]
[406864165,1772249440666,-500.0,0.000103,2]
[406864166,1772249440675,-500.0,0.000103,2]
[406864167,1772249440686,-500.0,0.000103,2]
[406864168,1772249440695,-500.0,0.000103,2]
[406864169,1772249440705,-500.0,0.000103,2]
[406864170,1772249440718,-500.0,0.000103,2]
[406864171,1772249440728,-500.0,0.000103,2]
[406864172,1772249440737,-637.82024133,0.000103,2]
[406864173,1772249440747,-500.0,0.000103,2]
[406864174,1772249440757,-500.0,0.000103,2]
[406864175,1772249440767,-500.0,0.000103,2]
[406864176,1772249440776,-500.0,0.000103,2]
[406864177,1772249440785,-500.0,0.000103,2]
[406864178,1772249440795,-749.34833525,0.000103,2]
[406864179,1772249440804,-500.0,0.000103,2]
[406864180,1772249440814,-500.0,0.000103,2]
[406864181,1772249440824,-500.0,0.000103,2]
[406864182,1772249440833,-500.0,0.000103,2]
[406864183,1772249440843,-500.0,0.000103,2]
[406864184,1772249440853,-500.0,0.000103,2]
[406864185,1772249440864,-751.52454982,0.000103,2]
[406864186,1772249440874,-617.83701369,0.00010316,2]
[406864187,1772249440884,-1562.33775238,0.00010316,2]
[406864188,1772249440894,-164.74,0.00010607,2]
[406864189,1772249440903,-1000.0,0.00010727,2]
[406864190,1772249440912,-2902.80186377,0.000109,2]
[406864191,1772249440922,-2902.80186373,0.000109,2]
[406864192,1772249440932,-250.0,0.00010901,2]
[406864193,1772249441137,-1829.61,0.00010955,2]
[406864194,1772249441148,-502.46010637,0.00010959,2]
[406864195,1772249441157,-943.78455388,0.00011,2]
[406864196,1772249441167,-197.86309411,0.00011,2]
[406864197,1772249441177,-26359.799707,0.00011099,2]
[406864198,1772249441188,-26359.79970691,0.00011099,2]
[406864199,1772249441198,-7322.32814899,0.00011099,2]
[406864200,1772249441207,-7322.32814893,0.00011099,2]
[406864201,1772249441216,-2351.0,0.00011111,2]
[406864202,1772249441225,-587.0,0.00011111,2]
[406864203,1772249441234,-433.0,0.00011113,2]
[406864204,1772249441244,-1512.53,0.00011129,2]
[406864205,1772249441253,-186.17,0.00011233,2]
[406864206,1772249441262,-150.99,0.00011281,2]
[406864207,1772249441271,-9999.99,0.00011281,2]
[406864208,1772249441281,-299.99,0.00011281,2]
[406864209,1772249441290,-7322.32814893,0.00011328,2]
[406864210,1772249441299,-26359.79970691,0.00011328,2]
[406864211,1772249441308,-242.78,0.00011694,2]
[406864212,1772249441318,-1000.0,0.00011799,2]
[406864213,1772249441327,-2902.80186373,0.00011896,2]
[406864214,1772249441336,-14700.0,0.000119,4]
[406864215,1772249441347,-500.0,0.0001207,2]
[406864216,1772249441356,-500.0,0.0001207,2]
[406864217,1772249441366,-500.0,0.0001207,2]
[406864218,1772249441375,-600.0,0.0001207,2]
[406864219,1772249441384,-500.0,0.0001207,2]
[406864220,1772249441393,-500.0,0.0001207,2]
[406864221,1772249441403,-500.0,0.0001207,2]
[406864222,1772249441412,-500.0,0.0001207,2]
[406864223,1772249441421,-500.0,0.0001207,2]
[406864224,1772249441431,-600.0,0.0001207,2]
[406864225,1772249441441,-500.0,0.0001207,2]
[406864226,1772249441450,-500.0,0.0001207,2]
[406864227,1772249441459,-600.0,0.0001207,2]
[406864228,1772249441470,-500.0,0.0001207,2]
[406864229,1772249441480,-500.0,0.0001207,2]
[406864230,1772249441489,-600.0,0.0001207,2]
[406864231,1772249441498,-500.0,0.0001207,2]
[406864232,1772249441508,-500.0,0.0001207,2]
[406864233,1772249441517,-600.0,0.0001207,2]
[406864234,1772249441526,-500.0,0.0001207,2]
[406864235,1772249441535,-500.0,0.0001207,2]
[406864236,1772249441545,-600.0,0.0001207,2]
[406864237,1772249441554,-500.0,0.0001207,2]